fUST/lending_fUST_20250725
["ID","MTS","AMOUNT","RATE_DAILY","PERIOD"]
[374649980,1753399854821,-155.218752,0.00019298,2]
[374649981,1753399854831,-177.873736,0.00019298,2]
[374649982,1753399854841,-155.218752,0.00019298,2]
[374649983,1753399854850,-502.17,0.00019298,2]
[374649984,1753399854861,-2415.76,0.00019298,2]
[374649985,1753399854871,-464.5,0.00019298,2]
[374649986,1753399854881,-460.0,0.00019298,2]
[374649987,1753399854891,-917.1,0.00019298,2]
[374649988,1753399854901,-460.0,0.00019298,2]
[374649989,1753399854911,-244.119832,0.00019298,2]
[374649990,1753399854920,-1191.29,0.00019298,2]
[374649991,1753399854930,-244.119832,0.00019298,2]
[374649992,1753399854940,-172.36816867,0.00019298,2]
[374649993,1753399854950,-1026.55,0.00019298,2]
[374649994,1753399854960,-460.0,0.00019298,2]
[374649995,1753399854970,-624.54,0.00019298,2]
[374649996,1753399854980,-460.0,0.00019298,2]
[374649997,1753399854991,-3364.24,0.00019298,2]
[374649998,1753399855000,-3300.61,0.00019298,2]
[374649999,1753399855010,-460.0,0.00019298,2]
[374650000,1753399855019,-919.74,0.00019298,2]
[374650001,1753399855031,-341.78521337,0.00019298,2]
[374650002,1753399855042,-2289.55,0.00019298,2]
[374650003,1753399855051,-2820.52,0.00019298,2]
[374650004,1753399855061,-460.0,0.00019298,2]
[374650005,1753399855072,-460.0,0.00019299,2]
[374650006,1753399855082,-162.40448595,0.00019299,2]
[374650007,1753399855092,-460.0,0.00019299,2]
[374650008,1753399855103,-460.0,0.00019299,2]
[374650009,1753399855117,-188.34103353,0.00019299,2]
[374650010,1753399855127,-393.94165669,0.00019299,2]
[374650011,1753399855136,-460.0,0.00019299,2]
[374650012,1753399855146,-460.0,0.00019299,2]
[374650013,1753399855156,-491.59,0.00019299,2]
[374650014,1753399855165,-471.11,0.00019299,2]
[374650015,1753399855175,-460.0,0.00019299,2]
[374650016,1753399855184,-460.0,0.00019299,2]
[374650017,1753399855194,-460.0,0.00019299,2]
[374650018,1753399855204,-460.0,0.00019299,2]
[374650019,1753399855215,-151.0,0.00019299,2]
[374650020,1753399855301,-158.206444,0.00019299,2]
[374650021,1753399855311,-158.206444,0.00019299,2]
[374650022,1753399855321,-151.0,0.00019299,2]
[374650023,1753399855331,-460.0,0.00019299,2]
[374650024,1753399855340,-151.0,0.00019299,2]
[374650025,1753399855349,-683.11,0.00019299,2]
[374650026,1753399855359,-151.0,0.00019299,2]
[374650027,1753399855368,-301.14829594,0.00019299,2]
[374650028,1753399855377,-240.108579,0.00019299,2]
[374650029,1753399855386,-240.108579,0.00019299,2]
[374650030,1753399855395,-151.0,0.00019299,2]
[374650031,1753399855404,-460.0,0.00019299,2]
[374650032,1753399855414,-297.00262278,0.00019299,2]
[374650033,1753399855423,-1079.03,0.00019299,2]
[374650034,1753399855432,-151.0,0.00019299,2]
[374650035,1753399855443,-3533.48,0.00019299,2]
[374650036,1753399855452,-151.0,0.00019299,2]
[374650037,1753399855461,-460.0,0.00019299,2]
[374650038,1753399855471,-3070.14,0.00019299,2]
[374650039,1753399855479,-460.0,0.00019299,2]
[374650040,1753399855489,-460.0,0.00019299,2]
[374650041,1753399855498,-253.865037,0.00019299,2]
[374650042,1753399855507,-253.865037,0.00019299,2]
[374650043,1753399855516,-460.0,0.000193,2]
[374650044,1753399855525,-460.0,0.000193,2]
[374650045,1753399855534,-468.93142773,0.000193,2]
[374650046,1753399855543,-151.0,0.000193,2]
[374650047,1753399855552,-151.0,0.000193,2]
[374650048,1753399855562,-261.955526,0.000193,2]
[374650049,1753399855571,-151.0,0.000193,2]
[374650050,1753399855581,-151.0,0.000193,2]
[374650051,1753399855591,-151.0,0.000193,2]
[374650052,1753399855602,-151.0,0.000193,2]
[374650053,1753399855613,-460.0,0.000193,2]
[374650054,1753399855622,-460.0,0.000193,2]
[374650055,1753399855632,-482.82,0.000193,2]
[374650056,1753399855641,-460.0,0.000193,2]
[374650057,1753399855651,-460.0,0.000193,2]
[374650058,1753399855660,-468.15342368,0.000193,2]
[374650059,1753399855670,-460.0,0.000193,2]
[374650060,1753399855680,-460.0,0.000193,2]
[374650061,1753399855690,-584.784385,0.000193,2]
[374650062,1753399855699,-1568.11,0.000193,2]
[374650063,1753399855709,-584.784385,0.000193,2]
[374650064,1753399855719,-463.91014658,0.000193,2]
[374650065,1753399855729,-460.0,0.000193,2]
[374650066,1753399855739,-460.0,0.000193,2]
[374650067,1753399855748,-460.0,0.000193,2]
[374650068,1753399855758,-460.0,0.000193,2]
[374650069,1753399855768,-460.0,0.000193,2]
[374650070,1753399855777,-272.086409,0.000193,2]
[374650071,1753399855787,-151.0,0.000193,2]
[374650072,1753399855798,-272.086409,0.000193,2]
[374650073,1753399855808,-773.44,0.000193,2]
[374650074,1753399855818,-460.0,0.000193,2]
[374650075,1753399855829,-460.0,0.000193,2]
[374650076,1753399855839,-460.0,0.000193,2]
[374650077,1753399855850,-151.0,0.000193,2]
[374650078,1753399855860,-622.12,0.000193,2]
[374650079,1753399855869,-460.0,0.000193,2]
[374650080,1753399855879,-568.85,0.000193,2]
[374650081,1753399855889,-460.0,0.000193,2]
[374650082,1753399855899,-337.648918,0.000193,2]
[374650083,1753399855910,-337.648918,0.000193,2]
[374650084,1753399855922,-460.0,0.000193,2]
[374650085,1753399855932,-460.0,0.000193,2]
[374650086,1753399855942,-460.0,0.000193,2]
[374650087,1753399855952,-289.320867,0.000193,2]
[374650088,1753399855962,-289.320867,0.000193,2]
[374650089,1753399855971,-602.31,0.000193,2]
[374650090,1753399855981,-460.0,0.000193,2]
[374650091,1753399855991,-460.0,0.000193,2]
[374650092,1753399856000,-460.0,0.000193,2]
[374650093,1753399856010,-584.72537457,0.000193,2]
[374650094,1753399856020,-625.1,0.000193,2]
[374650095,1753399856033,-646.526861,0.000193,2]
[374650096,1753399856043,-646.526861,0.000193,2]
[374650097,1753399856053,-460.0,0.000193,2]
[374650098,1753399856062,-460.0,0.000193,2]
[374650099,1753399856073,-709.88,0.000193,2]
[374650100,1753399856084,-460.0,0.000193,2]
[374650101,1753399856093,-155.218752,0.000193,2]
[374650102,1753399856103,-155.218752,0.000193,2]
[374650103,1753399856113,-460.0,0.000193,2]
[374650104,1753399856123,-460.0,0.000193,2]
[374650105,1753399856133,-460.0,0.000193,2]
[374650106,1753399856142,-765.17,0.000193,2]
[374650107,1753399856151,-460.0,0.000193,2]
[374650108,1753399856161,-215.23914893,0.000193,2]
[374650109,1753399856170,-237.06876321,0.000193,2]
[374650110,1753399856180,-460.0,0.000193,2]
[374650111,1753399856190,-460.0,0.000193,2]
[374650112,1753399856199,-597.29,0.000193,2]
[374650113,1753399856209,-499.18,0.000193,2]
[374650114,1753399856219,-460.0,0.000193,2]
[374650115,1753399856228,-460.0,0.000193,2]
[374650116,1753399856237,-460.0,0.000193,2]
[374650117,1753399856247,-462.35587766,0.000193,2]
[374650118,1753399856257,-460.0,0.000193,2]
[374650119,1753399856266,-460.0,0.000193,2]
[374650120,1753399856276,-488.16,0.000193,2]
[374650121,1753399856286,-460.0,0.000193,2]
[374650122,1753399856295,-460.0,0.000193,2]
[374650123,1753399856304,-460.0,0.000193,2]
[374650124,1753399856314,-761.02,0.000193,2]
[374650125,1753399856323,-460.0,0.000193,2]
[374650126,1753399856333,-151.0,0.00019301,7]
[374650127,1753399856343,-151.0,0.00019301,2]
[374650128,1753399856352,-151.0,0.00019301,2]
[374650129,1753399856362,-227.811382,0.00019301,2]
[374650130,1753399856371,-227.811382,0.00019301,2]
[374650131,1753399856381,-211.201632,0.00019301,2]
[374650132,1753399856390,-158.206444,0.00019301,2]
[374650133,1753399856400,-158.206444,0.00019301,2]
[374650134,1753399856409,-151.0,0.00019301,2]
[374650135,1753399856419,-460.0,0.00019301,2]
[374650136,1753399856428,-460.0,0.00019301,2]
[374650137,1753399856438,-460.0,0.00019301,2]
[374650138,1753399856448,-460.0,0.00019301,2]
[374650139,1753399856458,-460.0,0.00019301,2]
[374650140,1753399856468,-460.0,0.00019301,2]
[374650141,1753399856478,-460.0,0.00019301,2]
[374650142,1753399856487,-460.0,0.00019301,2]
[374650143,1753399856496,-460.0,0.00019301,2]
[374650144,1753399856506,-460.0,0.00019301,2]
[374650145,1753399856516,-564.18,0.00019301,2]
[374650146,1753399856526,-460.0,0.00019301,2]
[374650147,1753399856535,-460.0,0.00019301,2]
[374650148,1753399856544,-460.0,0.00019301,2]
[374650149,1753399856554,-151.0,0.00019301,2]
[374650150,1753399856563,-244.119832,0.00019301,2]
[374650151,1753399856573,-244.119832,0.00019301,2]
[374650152,1753399856655,-460.0,0.00019302,2]
[374650153,1753399856665,-460.0,0.00019302,2]
[374650154,1753399856675,-460.0,0.00019302,2]
[374650155,1753399856684,-460.0,0.00019302,2]
[374650156,1753399856694,-597.62642703,0.00019302,2]
[374650157,1753399856704,-460.0,0.00019302,2]
[374650158,1753399856714,-460.0,0.00019302,2]
[374650159,1753399856723,-1062.04,0.00019302,2]
[374650160,1753399856733,-460.0,0.00019302,2]
[374650161,1753399856742,-855.34,0.00019302,2]
[374650162,1753399856752,-460.0,0.00019302,2]
[374650163,1753399856762,-460.0,0.00019302,2]
[374650164,1753399856772,-460.0,0.00019302,2]
[374650165,1753399856782,-460.0,0.00019302,2]
[374650166,1753399856791,-460.0,0.00019302,2]
[374650167,1753399856801,-151.0,0.00019302,2]
[374650168,1753399856811,-281.31778873,0.00019302,2]
[374650169,1753399856822,-460.0,0.00019302,2]
[374650170,1753399856832,-464.55389216,0.00019302,2]
[374650171,1753399856842,-460.0,0.00019302,2]
[374650172,1753399856851,-460.0,0.00019302,2]
[374650173,1753399856862,-240.108579,0.00019302,2]
[374650174,1753399856871,-240.108579,0.00019302,2]
[374650175,1753399856881,-460.0,0.00019302,2]
[374650176,1753399856891,-460.0,0.00019302,2]
[374650177,1753399856901,-460.0,0.00019302,2]
[374650178,1753399856912,-460.0,0.00019302,2]
[374650179,1753399856923,-151.0,0.00019303,2]
[374650180,1753399856933,-402.712883,0.00019303,2]
[374650181,1753399856943,-402.712883,0.00019303,2]
[374650182,1753399856954,-1000.0,0.00019321,2]
[374650183,1753399856964,-1000.0,0.00019321,2]
[374650184,1753399856974,-937.56116194,0.00019321,2]
[374650185,1753399856984,-511.40600132,0.00019321,2]
[374650186,1753399856994,-725.68932087,0.00019321,2]
[374650187,1753399857004,-500.0,0.00019321,2]
[374650188,1753399857013,-1000.0,0.00019321,2]
[374650189,1753399857023,-151.0,0.00019329,2]
[374650190,1753399857036,-151.0,0.00019329,2]
[374650191,1753399857045,-240.108579,0.00019329,2]
[374650192,1753399857055,-240.108579,0.00019329,2]
[374650193,1753399857065,-155.218752,0.00019329,2]
[374650194,1753399857075,-155.218752,0.00019329,2]
[374650195,1753399857084,-151.0,0.00019329,2]
[374650196,1753399857093,-252.225551,0.00019329,2]
[374650197,1753399857105,-244.119832,0.00019329,2]
[374650198,1753399857116,-244.119832,0.00019329,2]
[374650199,1753399857127,-253.865037,0.00019329,2]
[374650200,1753399857137,-253.865037,0.00019329,2]
[374650201,1753399857148,-100000.0,0.00019329,2]
[374650202,1753399857158,-168.0,0.00019404,2]
[374650203,1753399857168,-526.24749348,0.00019454,2]
[374650204,1753399857178,-160.0,0.00019454,2]
[374650205,1753399857189,-160.0,0.00019454,2]
[374650206,1753399857199,-12624.810388,0.00019454,2]
[374650207,1753399857209,-476.79463412,0.00019454,2]
[374650208,1753399857219,-214.7213231,0.00019454,2]
[374650209,1753399857228,-231.16387093,0.00019454,2]
[374650210,1753399857237,-215.88777038,0.00019454,2]
[374650211,1753399857246,-160.0,0.00019454,2]
[374650212,1753399857257,-840.23756827,0.00019454,2]
[374650213,1753399857267,-460.0,0.00019471,2]
[374650214,1753399857277,-460.0,0.00019472,2]
[374650215,1753399857286,-460.0,0.00019472,2]
[374650216,1753399857297,-456.76833669,0.00019472,2]
[374650217,1753399857307,-460.0,0.00019472,2]
[374650218,1753399857317,-460.0,0.00019472,2]
[374650219,1753399857326,-460.0,0.00019472,2]
[374650220,1753399857336,-460.0,0.00019472,2]
[374650221,1753399857346,-460.0,0.00019472,2]
[374650222,1753399857357,-563.63,0.00019472,2]
[374650223,1753399857368,-6403.75,0.00019472,2]
[374650224,1753399857377,-2963.71,0.00019472,2]
[374650225,1753399857388,-460.0,0.00019472,2]
[374650226,1753399857398,-525.47,0.00019472,2]
[374650227,1753399857408,-460.0,0.00019472,2]
[374650228,1753399857418,-935.07,0.00019472,2]
[374650229,1753399857428,-695.65,0.00019472,2]
[374650230,1753399857437,-460.0,0.00019472,2]
[374650231,1753399857447,-460.0,0.00019472,2]
[374650232,1753399857456,-2730.7,0.00019472,2]
[374650233,1753399857466,-3445.19,0.00019472,2]
[374650234,1753399857475,-460.0,0.00019472,2]
[374650235,1753399857485,-460.0,0.00019472,2]
[374650236,1753399857495,-780.66,0.00019472,2]
[374650237,1753399857504,-579.36,0.00019472,2]
[374650238,1753399857515,-460.0,0.00019472,2]
[374650239,1753399857526,-2429.08,0.00019472,2]
[374650240,1753399857535,-608.29,0.00019472,2]
[374650241,1753399857545,-2165.27,0.00019472,2]
[374650242,1753399857555,-693.71,0.00019472,2]
[374650243,1753399857564,-1024.03,0.00019472,2]
[374650244,1753399857574,-704.29,0.00019472,2]
[374650245,1753399857583,-460.0,0.00019473,2]
[374650246,1753399857593,-475.87,0.00019473,2]
[374650247,1753399857602,-460.0,0.00019473,2]
[374650248,1753399857613,-605.27,0.00019473,2]
[374650249,1753399857623,-460.0,0.00019473,2]
[374650250,1753399857633,-460.0,0.00019473,2]
[374650251,1753399857643,-460.0,0.00019473,2]
[374650252,1753399857652,-151.0,0.00019473,2]
[374650253,1753399857662,-151.0,0.00019473,2]
[374650254,1753399857672,-703.07,0.00019473,2]
[374650255,1753399857683,-151.0,0.00019473,2]
[374650256,1753399857692,-591.92,0.00019473,2]
[374650257,1753399857702,-337.648918,0.00019473,2]
[374650258,1753399857712,-337.648918,0.00019473,2]
[374650259,1753399857723,-460.0,0.00019473,2]
[374650260,1753399857735,-460.0,0.00019473,2]
[374650261,1753399857744,-460.0,0.00019473,2]
[374650262,1753399857754,-940.25,0.00019473,2]
[374650263,1753399857764,-572.88,0.00019473,2]
[374650264,1753399857774,-646.526861,0.00019473,2]
[374650265,1753399857784,-646.526861,0.00019473,2]
[374650266,1753399857794,-460.0,0.00019473,2]
[374650267,1753399857804,-460.0,0.00019473,2]
[374650268,1753399857814,-698.83,0.00019473,2]
[374650269,1753399857824,-460.0,0.00019473,2]
[374650270,1753399857833,-774.33,0.00019473,2]
[374650271,1753399857843,-460.0,0.00019473,2]
[374650272,1753399857852,-1174.24,0.00019473,2]
[374650273,1753399857933,-454.00162627,0.00019473,2]
[374650274,1753399857943,-460.0,0.00019473,2]
[374650275,1753399857952,-461.44,0.00019473,2]
[374650276,1753399857962,-460.0,0.00019473,2]
[374650277,1753399857972,-460.0,0.00019473,2]
[374650278,1753399857983,-1071.38,0.00019473,2]
[374650279,1753399857993,-537.39,0.00019473,2]
[374650280,1753399858003,-460.0,0.00019473,2]
[374650281,1753399858012,-460.0,0.00019473,2]
[374650282,1753399858022,-460.0,0.00019473,2]
[374650283,1753399858036,-949.99,0.00019473,2]
[374650284,1753399858046,-587.19,0.00019473,2]
[374650285,1753399858055,-460.0,0.00019473,2]
[374650286,1753399858066,-915.41,0.00019473,2]
[374650287,1753399858076,-1401.05,0.00019473,2]
[374650288,1753399858085,-460.0,0.00019473,2]
[374650289,1753399858095,-317.47886199,0.00019473,2]
[374650290,1753399858106,-460.0,0.00019473,2]
[374650291,1753399858117,-460.0,0.00019473,2]
[374650292,1753399858127,-460.0,0.00019473,2]
[374650293,1753399858137,-460.0,0.00019473,2]
[374650294,1753399858147,-460.0,0.00019473,2]
[374650295,1753399858156,-668.12,0.00019473,2]
[374650296,1753399858166,-460.0,0.00019473,2]
[374650297,1753399858176,-460.0,0.00019473,2]
[374650298,1753399858185,-615.52,0.00019473,2]
[374650299,1753399858194,-460.0,0.00019473,2]
[374650300,1753399858204,-460.0,0.00019473,2]
[374650301,1753399858213,-460.0,0.00019473,2]
[374650302,1753399858223,-460.0,0.00019473,2]
[374650303,1753399858233,-476.6,0.00019473,2]
[374650304,1753399858244,-979.0,0.00019474,2]
[374650305,1753399858254,-500.0,0.00019474,2]
[374650306,1753399858263,-500.0,0.00019474,2]
[374650307,1753399858273,-500.0,0.00019474,2]
[374650308,1753399858282,-1126.0,0.00019474,2]
[374650309,1753399858292,-151.0,0.00019474,2]
[374650310,1753399858301,-151.0,0.00019474,2]
[374650311,1753399858311,-302.0,0.00019474,2]
[374650312,1753399858320,-151.0,0.00019474,2]
[374650313,1753399858330,-460.0,0.00019474,2]
[374650314,1753399858340,-460.0,0.00019474,2]
[374650315,1753399858349,-460.0,0.00019474,2]
[374650316,1753399858359,-522.06,0.00019474,2]
[374650317,1753399858368,-460.0,0.00019474,2]
[374650318,1753399858378,-460.0,0.00019474,2]
[374650319,1753399858388,-479.39154465,0.00019474,2]
[374650320,1753399858397,-460.0,0.00019474,2]
[374650321,1753399858406,-460.0,0.00019474,2]
[374650322,1753399858416,-581.82,0.00019474,2]
[374650323,1753399858425,-460.0,0.00019474,2]
[374650324,1753399858435,-460.0,0.00019474,2]
[374650325,1753399858445,-460.0,0.00019474,2]
[374650326,1753399858455,-460.0,0.00019474,2]
[374650327,1753399858465,-225.48440026,0.00019474,2]
[374650328,1753399858474,-460.0,0.00019474,2]
[374650329,1753399858484,-460.0,0.00019474,2]
[374650330,1753399858494,-460.0,0.00019474,2]
[374650331,1753399858505,-658.95,0.00019474,2]
[374650332,1753399858514,-1505.55,0.00019474,2]
[374650333,1753399858523,-460.0,0.00019474,2]
[374650334,1753399858533,-460.0,0.00019474,2]
[374650335,1753399858543,-460.0,0.00019474,2]
[374650336,1753399858553,-1395.06,0.00019474,2]
[374650337,1753399858563,-1160.38,0.00019474,2]
[374650338,1753399858573,-460.0,0.00019474,2]
[374650339,1753399858583,-460.0,0.00019474,2]
[374650340,1753399858593,-460.0,0.00019474,2]
[374650341,1753399858603,-897.47,0.00019474,2]
[374650342,1753399858613,-479.16,0.00019474,2]
[374650343,1753399858623,-714.45,0.00019474,2]
[374650344,1753399858632,-460.0,0.00019474,2]
[374650345,1753399858642,-1030.31,0.00019474,2]
[374650346,1753399858652,-460.0,0.00019474,2]
[374650347,1753399858662,-540.07,0.00019474,2]
[374650348,1753399858672,-645.03,0.00019474,2]
[374650349,1753399858681,-460.0,0.00019474,2]
[374650350,1753399858691,-173.7533436,0.00019572,2]
[374650351,1753399858701,-151.0,0.00019572,2]
[374650352,1753399858711,-198.0,0.00019572,2]
[374650353,1753399858722,-151.0,0.00019572,2]
[374650354,1753399858731,-245.0,0.00019572,2]
[374650355,1753399858740,-460.0,0.00019572,2]
[374650356,1753399858750,-460.0,0.00019572,2]
[374650357,1753399858759,-460.0,0.00019572,2]
[374650358,1753399858769,-460.0,0.00019572,2]
[374650359,1753399858779,-460.0,0.00019572,2]
[374650360,1753399858789,-460.0,0.00019572,2]
[374650361,1753399858799,-460.0,0.00019572,2]
[374650362,1753399858809,-460.0,0.00019572,2]
[374650363,1753399858818,-460.0,0.00019572,2]
[374650364,1753399858828,-428.23895884,0.00019572,2]
[374650365,1753399858837,-460.0,0.00019572,2]
[374650366,1753399858847,-584.784385,0.00019572,2]
[374650367,1753399858857,-584.784385,0.00019572,2]
[374650368,1753399858868,-460.0,0.00019572,2]
[374650369,1753399858877,-385.89061929,0.00019572,2]
[374650370,1753399859122,-74.10938071,0.00019572,2]
[374650371,1753399859132,-598.13,0.00019572,2]
[374650372,1753399859141,-837.31,0.00019572,2]
[374650373,1753399859151,-460.0,0.00019572,2]
[374650374,1753399859160,-894.37,0.00019572,2]
[374650375,1753399859170,-272.086409,0.00019572,2]
[374650376,1753399859181,-272.086409,0.00019572,2]
[374650377,1753399859191,-460.0,0.00019572,2]
[374650378,1753399859200,-1022.85,0.00019572,2]
[374650379,1753399859210,-460.0,0.00019572,2]
[374650380,1753399859220,-460.0,0.00019572,2]
[374650381,1753399859230,-468.87214064,0.00019572,2]
[374650382,1753399859240,-686.1,0.00019572,2]
[374650383,1753399859249,-460.0,0.00019572,2]
[374650384,1753399859259,-460.0,0.00019572,2]
[374650385,1753399859268,-460.0,0.00019572,2]
[374650386,1753399859278,-1269.57,0.00019572,2]
[374650387,1753399859288,-460.0,0.00019572,2]
[374650388,1753399859297,-460.0,0.00019572,2]
[374650389,1753399859306,-756.81,0.00019572,2]
[374650390,1753399859316,-460.0,0.00019572,2]
[374650391,1753399859326,-460.0,0.00019572,2]
[374650392,1753399859343,-460.0,0.00019572,2]
[374650393,1753399859363,-472.67072794,0.00019572,2]
[374650394,1753399859383,-1183.51,0.00019572,2]
[374650395,1753399859403,-460.0,0.00019572,2]
[374650396,1753399859424,-460.0,0.00019572,2]
[374650397,1753399859442,-561.14,0.00019572,2]
[374650398,1753399859459,-289.320867,0.00019572,2]
[374650399,1753399859474,-289.320867,0.00019572,2]
[374650400,1753399859492,-460.0,0.00019572,2]
[374650401,1753399859513,-460.0,0.00019572,2]
[374650402,1753399859533,-460.0,0.00019572,2]
[374650403,1753399859545,-6067.09,0.00019572,2]
[374650404,1753399859565,-460.0,0.00019572,2]
[374650405,1753399859580,-2320.41,0.00019572,2]
[374650406,1753399859596,-481.98,0.00019572,2]
[374650407,1753399859611,-582.71,0.00019572,2]
[374650408,1753399859627,-155.218752,0.00019572,2]
[374650409,1753399859642,-155.218752,0.00019572,2]
[374650410,1753399859657,-502.17,0.00019572,2]
[374650411,1753399859671,-2415.76,0.00019572,2]
[374650412,1753399859686,-464.5,0.00019572,2]
[374650413,1753399859701,-460.0,0.00019572,2]
[374650414,1753399859717,-917.1,0.00019572,2]
[374650415,1753399859732,-188.449784,0.00019572,2]
[374650416,1753399859746,-464.31744254,0.00019572,2]
[374650417,1753399859761,-1191.29,0.00019572,2]
[374650418,1753399859777,-244.119832,0.00019572,2]
[374650419,1753399859792,-244.119832,0.00019572,2]
[374650420,1753399859807,-1026.55,0.00019572,2]
[374650421,1753399859822,-460.0,0.00019572,2]
[374650422,1753399859837,-624.54,0.00019572,2]
[374650423,1753399859853,-460.0,0.00019572,2]
[374650424,1753399859868,-3364.24,0.00019572,2]
[374650425,1753399859882,-3300.61,0.00019572,2]
[374650426,1753399859900,-460.0,0.00019572,2]
[374650427,1753399859910,-919.74,0.00019572,2]
[374650428,1753399859920,-2289.55,0.00019572,2]
[374650429,1753399859931,-2820.52,0.00019572,2]
[374650430,1753399859942,-460.0,0.00019572,2]
[374650431,1753399859952,-253.865037,0.00019572,2]
[374650432,1753399859963,-253.865037,0.00019572,2]
[374650433,1753399859973,-500.0,0.00019573,2]
[374650434,1753399859982,-500.0,0.00019573,2]
[374650435,1753399859991,-500.0,0.00019573,2]
[374650436,1753399860002,-460.0,0.00019573,2]
[374650437,1753399860011,-460.0,0.00019573,2]
[374650438,1753399860021,-460.0,0.00019573,2]
[374650439,1753399860035,-460.0,0.00019573,2]
[374650440,1753399860048,-460.0,0.00019573,2]
[374650441,1753399860057,-491.59,0.00019573,2]
[374650442,1753399860067,-471.11,0.00019573,2]
[374650443,1753399860201,-460.0,0.00019573,2]
[374650444,1753399860268,-205.37752916,0.00019573,2]
[374650445,1753399860282,-151.453999,0.00019573,2]
[374650446,1753399860292,-151.0,0.00019573,2]
[374650447,1753399860301,-151.0,0.00019573,2]
[374650448,1753399860311,-151.0,0.00019573,2]
[374650449,1753399860320,-151.0,0.00019573,2]
[374650450,1753399860330,-151.0,0.00019573,2]
[374650451,1753399860340,-151.0,0.00019573,2]
[374650452,1753399860350,-227.811382,0.00019573,2]
[374650453,1753399860361,-2317.60115777,0.00019573,2]
[374650454,1753399860370,-151.0,0.00019573,2]
[374650455,1753399860380,-227.811382,0.00019573,2]
[374650456,1753399860390,-151.0,0.00019573,2]
[374650457,1753399860401,-158.206444,0.00019573,2]
[374650458,1753399860412,-158.206444,0.00019573,2]
[374650459,1753399860422,-151.0,0.00019573,2]
[374650460,1753399860432,-460.0,0.00019573,2]
[374650461,1753399860442,-151.0,0.00019573,2]
[374650462,1753399860452,-151.0,0.00019573,2]
[374650463,1753399860462,-151.0,0.00019573,2]
[374650464,1753399860473,-337.648918,0.00019573,2]
[374650465,1753399860482,-337.648918,0.00019573,2]
[374650466,1753399860492,-683.11,0.00019573,2]
[374650467,1753399860502,-151.0,0.00019573,2]
[374650468,1753399860512,-646.526861,0.00019573,2]
[374650469,1753399860521,-646.526861,0.00019573,2]
[374650470,1753399860531,-240.108579,0.00019573,2]
[374650471,1753399860540,-240.108579,0.00019573,2]
[374650472,1753399860550,-460.0,0.00019573,2]
[374650473,1753399860560,-1079.03,0.00019573,2]
[374650474,1753399860570,-3533.48,0.00019573,2]
[374650475,1753399860580,-460.0,0.00019573,2]
[374650476,1753399860589,-3070.14,0.00019573,2]
[374650477,1753399860598,-460.0,0.00019573,2]
[374650478,1753399860608,-460.0,0.00019573,2]
[374650479,1753399860618,-460.0,0.00019574,2]